bitfinex/quotes_SOLUSD_20260115
["timestamp","ask_amount","ask_price","bid_price","bid_amount"]
[1768491127203,9.51459403,142.62,142.58,9.64061025]
[1768491127432,16.25260372,142.62,142.58,9.64061025]
[1768491127584,7.01134462,142.63,142.59,2.62728253]
[1768491127882,13.74935431,142.63,142.59,2.62728253]
[1768491128309,6.73800969,142.62,142.57,16.37918026]
[1768491128492,6.73800969,142.61,142.57,9.64117057]
[1768491128685,9.30064044,142.61,142.57,2.62728253]
[1768491129014,2.56263075,142.58,142.56,0.2]
[1768491129386,9.30064044,142.58,142.56,0.2]
[1768491129605,2.56263075,142.56,142.53,0.2]
[1768491129824,9.30064044,142.56,142.53,0.2]
[1768491129987,2.56263075,142.56,142.53,0.2]
[1768491130187,12.78,142.59,142.54,2.62728253]
[1768491130405,16.31424683,142.58,142.54,2.62728253]
[1768491130594,6.73800969,142.57,142.54,2.62728253]
[1768491130790,6.73800969,142.57,142.53,7.21605648]
[1768491130990,9.57623714,142.58,142.53,9.84333901]
[1768491131201,22.08064044,142.6,142.55,9.36529222]
[1768491131601,22.08064044,142.6,142.55,2.62728253]
[1768491131811,22.08064044,142.6,142.55,9.36529222]
[1768491132306,22.35547571,142.6,142.55,16.37996346]
[1768491132485,29.0934854,142.6,142.55,16.37996346]
[1768491133005,7.01231632,142.61,142.57,2.62728253]
[1768491133212,9.57434883,142.62,142.58,2.62728253]
[1768491133813,7.01171808,142.62,142.58,9.36529222]
[1768491134195,7.01171808,142.62,142.55,24.5523773]
[1768491134196,16.31235852,142.62,142.56,2.62728253]
[1768491134395,16.31235852,142.62,142.56,9.36529222]
[1768491134396,9.30064044,142.61,142.56,9.36529222]
[1768491134595,9.30064044,142.61,142.56,2.62728253]
[1768491134796,6.73800969,142.6,142.56,2.62728253]
[1768491135113,2.56263075,142.6,142.56,2.62728253]
[1768491135424,5.20650363,142.6,142.56,2.62728253]
[1768491135828,5.20650363,142.6,142.56,9.6416991]
[1768491136000,2.64387288,142.59,142.55,2.62728253]
[1768491136193,2.56263075,142.58,142.54,7.01528032]
[1768491136397,2.56263075,142.58,142.53,12.48681009]
[1768491136398,5.20650363,142.58,142.53,12.48681009]
[1768491136993,5.20650363,142.58,142.54,7.01556685]
[1768491137219,5.20650363,142.58,142.54,9.64284938]
[1768491137717,24.5442236,142.6,142.54,9.64284938]
[1768491137718,5.20650363,142.59,142.54,9.64284938]
[1768491138221,2.56263075,142.57,142.53,7.21584886]
[1768491138419,12.2198999,142.59,142.54,7.01552822]
[1768491138809,9.57602702,142.59,142.54,9.64281075]
[1768491139113,12.2198999,142.59,142.54,9.64281075]
[1768491139936,12.22029673,142.58,142.54,9.64281075]
[1768491140104,5.20650363,142.57,142.53,9.84331374]
[1768491140304,2.56263075,142.57,142.53,9.84331374]
[1768491141132,2.56263075,142.57,142.54,7.01547602]
[1768491141322,2.56263075,142.57,142.54,7.01544611]
[1768491141521,2.56263075,142.57,142.53,2.82728253]
[1768491141522,5.28549778,142.56,142.53,0.2]
[1768491141922,12.30009018,142.56,142.53,0.2]
[1768491142939,5.28549778,142.55,142.53,0.2]
[1768491143109,7.0145924,142.56,142.53,0.2]
[1768491143307,9.65819351,142.57,142.53,9.67731603]
[1768491143545,64.08253636,142.6,142.56,2.46150638]
[1768491143848,66.72640924,142.6,142.56,2.46150638]
[1768491144012,66.72640924,142.6,142.54,12.12062149]
[1768491144213,2.64387288,142.59,142.54,12.12062149]
[1768491144429,81.61409316,142.6,142.55,2.65291953]
[1768491144733,2.64387288,142.59,142.54,12.31203464]
[1768491144947,81.61409316,142.6,142.55,5.29679241]
[1768491145117,84.25796604,142.6,142.55,5.29679241]
[1768491145422,86.83823164,142.6,142.55,2.65291953]
[1768491145835,86.83823164,142.6,142.55,9.66786342]
[1768491146041,57.06970238,142.6,142.56,5.29679241]
[1768491146214,57.06970238,142.6,142.57,2.65291953]
[1768491147040,64.08234808,142.6,142.57,2.65291953]
[1768491147235,64.08234808,142.6,142.56,2.64387288]
[1768491147541,64.08234808,142.6,142.56,12.31131518]
[1768491147734,66.66261368,142.6,142.56,9.6674423]
[1768491148441,57.06970238,142.6,142.57,2.65291953]
[1768491148641,7.01134947,142.63,142.58,2.65291953]
[1768491148845,5.22413848,142.64,142.59,2.65291953]
[1768491149150,5.22413848,142.63,142.59,2.65291953]
[1768491149439,2.5802656,142.62,142.57,6.78238013]
[1768491149636,9.59237465,142.62,142.57,13.79640025]
[1768491149817,9.59237465,142.62,142.58,2.65291953]
[1768491150020,27.12147295,142.62,142.58,2.65291953]
[1768491150449,2.5802656,142.61,142.56,9.6671593]
[1768491150624,2.5802656,142.61,142.56,11.14370037]
[1768491150940,2.5802656,142.57,142.53,2.85291953]
[1768491151147,6.7097262,142.57,142.53,2.85291953]
[1768491151447,2.5802656,142.57,142.53,9.86897649]
[1768491151948,9.59430314,142.58,142.53,13.99843709]
[1768491152249,9.59430314,142.58,142.54,4.1294606]
[1768491152439,13.72376374,142.58,142.53,9.86897649]
[1768491152638,13.72376374,142.58,142.54,2.65291953]
[1768491152945,9.59430314,142.58,142.54,2.65291953]
[1768491153131,9.59430314,142.58,142.54,9.66836794]
[1768491153332,9.59430314,142.58,142.54,13.79782854]
[1768491153536,2.5802656,142.58,142.54,13.79782854]
[1768491154253,2.5802656,142.58,142.54,9.66836794]
[1768491154442,7.0133402,142.59,142.55,2.65291953]
[1768491154645,9.5936058,142.59,142.55,2.65291953]
[1768491154964,9.5936058,142.59,142.55,9.66782755]
[1768491155531,2.5802656,142.59,142.55,9.66782755]
[1768491155733,87.40057676,142.61,142.55,9.66782755]
[1768491155734,63.77942858,142.61,142.56,6.78238013]
[1768491155942,2.5802656,142.61,142.57,2.65291953]
[1768491156144,2.5802656,142.61,142.57,6.78238013]
[1768491156435,2.5802656,142.61,142.57,2.65291953]
[1768491156634,7.01191779,142.62,142.57,6.78238013]
[1768491156950,9.59218339,142.62,142.57,6.78238013]
[1768491157128,2.5802656,142.62,142.58,2.65291953]
[1768491157470,2.5802656,142.64,142.6,2.65291953]
[1768491158457,9.59105059,142.64,142.6,2.65291953]
[1768491158656,2.5802656,142.68,142.63,2.65291953]
[1768491158850,7.00886883,142.68,142.64,2.65291953]
[1768491159034,64.07795544,142.69,142.65,2.65291953]
[1768491159237,7.00825306,142.69,142.65,2.65291953]
[1768491159462,13.71754127,142.7,142.65,6.78238013]
[1768491160330,9.58808067,142.7,142.65,2.65291953]
[1768491160530,6.7097262,142.69,142.64,7.01055246]
[1768491160734,6.7097262,142.68,142.63,9.66399346]
[1768491160935,6.7097262,142.68,142.6,17.53096296]
[1768491160936,2.5802656,142.67,142.62,2.65291953]
[1768491161233,2.5802656,142.67,142.63,2.65291953]
[1768491161634,6.7097262,142.65,142.59,6.78238013]
[1768491161845,6.7097262,142.65,142.6,2.65291953]
[1768491162043,2.5802656,142.65,142.6,2.65291953]
[1768491162245,6.7097262,142.65,142.6,2.65291953]
[1768491162561,13.72024475,142.65,142.6,9.66523463]
[1768491163354,20.54260978,142.65,142.6,9.66523463]
[1768491163553,7.00977803,142.66,142.62,2.65291953]
[1768491163861,7.00977803,142.66,142.61,10.95182563]
[1768491163862,10.95182563,142.69,142.64,2.65291953]
[1768491164156,17.96016577,142.69,142.64,2.65291953]
[1768491164983,9.58860574,142.69,142.64,2.65291953]
[1768491165148,20.54043137,142.69,142.64,2.65291953]
[1768491165460,13.53209123,142.68,142.64,2.65291953]
[1768491165664,20.54087372,142.68,142.64,2.65291953]
[1768491165860,9.58904809,142.68,142.64,2.65291953]
[1768491166032,20.54087372,142.68,142.64,2.65291953]
[1768491166438,9.58904809,142.68,142.64,2.65291953]
[1768491166659,20.54087372,142.68,142.64,2.65291953]
[1768491166859,20.54087372,142.68,142.63,7.01080018]
[1768491167155,13.53209123,142.65,142.61,2.65291953]
[1768491167766,2.5802656,142.67,142.61,2.65291953]
[1768491167941,10.95182563,142.66,142.61,2.65291953]
[1768491168259,9.58944762,142.67,142.62,2.65291953]
[1768491168450,10.95182563,142.66,142.62,2.65291953]
[1768491169670,17.96166909,142.66,142.62,2.65291953]
[1768491169863,20.54193469,142.66,142.62,2.65291953]
[1768491170974,13.3588896,142.63,142.59,2.55638507]
[1768491171155,10.95182563,142.64,142.59,9.56919838]
[1768491171478,2.40706397,142.64,142.59,20.52102401]
[1768491171669,9.41799741,142.64,142.59,9.56919838]
[1768491171845,13.3588896,142.63,142.58,7.01341072]
[1768491172173,13.3588896,142.63,142.58,9.56979579]
[1768491173076,2.40706397,142.63,142.59,7.01303951]
[1768491174352,33.14951218,142.65,142.6,2.55638507]
[1768491174859,13.3588896,142.64,142.6,2.55638507]
[1768491175580,2.40706397,142.64,142.6,2.55638507]
[1768491175875,13.3588896,142.64,142.6,2.55638507]
[1768491176177,9.41785436,142.64,142.6,2.55638507]
[1768491176386,20.36967999,142.64,142.6,2.55638507]
[1768491179581,69.84970238,142.67,142.59,2.55638507]
[1768491179582,20.37031614,142.63,142.59,2.55638507]
[1768491179777,20.37031614,142.63,142.57,2.55638507]
[1768491179778,13.3588896,142.62,142.57,2.55638507]
[1768491180008,13.3588896,142.6,142.55,7.01487935]
[1768491180176,13.3588896,142.62,142.56,10.95182563]
[1768491180364,17.96325217,142.63,142.57,10.95182563]
[1768491180678,20.37031614,142.63,142.55,24.55258541]
[1768491180877,10.95182563,142.62,142.55,24.55258541]
[1768491181078,13.3588896,142.61,142.55,17.96670498]
[1768491181584,7.01311452,142.59,142.55,7.01487935]
[1768491181781,9.41979169,142.6,142.55,7.01487935]
[1768491182083,7.01272772,142.6,142.55,17.96670498]
[1768491182375,20.37161732,142.6,142.55,9.57126442]
[1768491182585,20.37161732,142.6,142.56,2.55638507]
[1768491183160,13.3588896,142.58,142.54,2.55638507]
[1768491183375,2.40706397,142.58,142.54,2.55638507]
[1768491183757,7.01379443,142.58,142.54,9.57184692]
[1768491184484,7.01379443,142.58,142.54,9.57193139]
[1768491185000,10.95182563,142.57,142.53,0.2]
[1768491185165,26.95487439,142.58,142.53,0.2]
[1768491185366,4.13361492,142.56,142.53,0.2]
[1768491185569,4.13361492,142.57,142.53,0.2]
[1768491185785,31.08848931,142.58,142.53,0.2]
[1768491186994,2.40706397,142.56,142.53,0.2]
[1768491187199,6.54067889,142.56,142.53,0.2]
[1768491187693,2.40706397,142.55,142.53,0.2]
[1768491188866,7.01470168,142.56,142.53,2.75638507]
[1768491189469,9.42134021,142.57,142.53,2.75638507]
[1768491189683,4.13361492,142.56,142.53,2.75638507]
[1768491189869,4.13361492,142.55,142.53,0.2]
[1768491190069,6.54067889,142.56,142.53,0.2]
[1768491191071,2.40706397,142.56,142.53,0.2]
[1768491191461,6.54067889,142.56,142.53,0.2]
[1768491191875,7.01508242,142.55,142.53,0.2]
[1768491192974,2.40706397,142.58,142.53,2.75638507]
[1768491193189,7.01360639,142.58,142.54,2.55638507]
[1768491193380,7.01360639,142.58,142.55,2.55638507]
[1768491193874,13.55428528,142.58,142.53,13.90584753]
[1768491194072,13.55428528,142.58,142.54,2.55638507]
[1768491194281,9.42067036,142.58,142.54,9.57193565]
[1768491194579,9.42067036,142.58,142.54,2.55638507]
[1768491194793,2.40706397,142.57,142.53,0.2]
[1768491194964,2.40706397,142.56,142.53,0.2]
[1768491195168,6.54067889,142.57,142.53,2.75638507]
[1768491195590,6.54067889,142.57,142.53,0.2]
[1768491196795,13.55523456,142.57,142.53,0.2]
[1768491198104,7.01455567,142.57,142.54,2.55638507]
[1768491198399,9.4203593,142.59,142.54,6.68999999]
[1768491199500,9.4203593,142.59,142.55,2.55638507]
[1768491200305,2.40706397,142.59,142.56,7.01459034]
[1768491200504,2.40706397,142.59,142.55,9.57127294]
[1768491200699,9.42030671,142.59,142.55,9.57127294]
[1768491201998,13.55392163,142.59,142.55,9.57127294]
[1768491202540,2.57173074,142.58,142.54,7.0153814]
[1768491202684,2.57173074,142.57,142.54,7.0153814]
[1768491202879,4.13361492,142.58,142.54,7.0153814]
[1768491203085,13.7185884,142.59,142.55,7.0150198]
[1768491203291,13.7185884,142.59,142.54,9.44107834]
[1768491203589,6.70534566,142.58,142.54,9.44107834]
[1768491203904,7.01324274,142.59,142.53,0.2]
[1768491203905,2.57173074,142.56,142.53,0.2]
[1768491204408,13.68279448,142.58,142.54,7.01546615]
[1768491204780,2.53556706,142.6,142.55,2.53396587]
[1768491204985,6.66918198,142.6,142.55,2.53396587]
[1768491205385,2.53556706,142.59,142.55,2.53396587]
[1768491205781,9.38623927,142.59,142.55,9.54896159]
[1768491206406,61.2033173,142.61,142.56,2.53396587]
[1768491206606,4.13361492,142.6,142.55,7.01499572]
[1768491206810,4.13361492,142.6,142.55,9.54896159]
[1768491207210,64.08221083,142.61,142.56,2.53396587]
[1768491207514,4.13361492,142.6,142.56,2.53396587]
[1768491207917,57.06970238,142.61,142.57,2.53396587]
[1768491208128,2.53556706,142.62,142.58,2.53396587]
[1768491208829,9.54721404,142.62,142.58,2.53396587]
[1768491209812,2.53556706,142.62,142.58,9.54752684]
[1768491210221,9.54721727,142.62,142.58,9.54752684]
[1768491210934,9.54639651,142.64,142.59,2.53396587]
[1768491211117,2.53556706,142.64,142.6,2.53396587]
[1768491211321,82.05762982,142.65,142.6,2.53396587]
[1768491211517,82.05762982,142.65,142.58,2.53396587]
[1768491211518,2.53556706,142.62,142.58,2.53396587]
[1768491211844,12.18973405,142.62,142.58,2.53396587]
[1768491212338,9.54759778,142.62,142.58,2.53396587]
[1768491212638,7.01203072,142.62,142.58,5.17610214]
[1768491213220,24.54112902,142.62,142.58,2.53396587]
[1768491213920,27.18326529,142.62,142.58,2.53396587]
[1768491215432,7.01203072,142.62,142.58,2.53396587]
[1768491215627,9.65416699,142.62,142.58,2.53396587]
[1768491215836,27.18326529,142.62,142.58,2.53396587]
[1768491216027,7.01203072,142.62,142.58,2.53396587]
[1768491216214,6.95203069,142.62,142.59,2.53396587]
[1768491216722,2.64213627,142.61,142.57,2.53396587]
[1768491216922,27.01669605,142.62,142.57,2.53396587]
[1768491217122,29.65883232,142.62,142.57,2.53396587]
[1768491218616,24.48112899,142.62,142.57,2.64213627]
[1768491218823,24.48112899,142.62,142.58,2.53396587]
[1768491220232,27.01669605,142.62,142.58,2.53396587]
[1768491220429,29.65883232,142.62,142.58,2.53396587]
[1768491220734,2.64213627,142.61,142.58,2.53396587]
[1768491221229,29.65883232,142.62,142.58,2.53396587]
[1768491221527,27.12326526,142.62,142.58,2.53396587]
[1768491222117,7.01171112,142.62,142.59,2.53396587]
[1768491223236,9.65384739,142.62,142.59,2.53396587]
[1768491224349,7.01171112,142.62,142.59,2.53396587]
[1768491226830,9.65384739,142.62,142.59,2.53396587]
[1768491228958,29.71851275,142.62,142.56,7.01450876]
[1768491230225,29.71851275,142.62,142.56,9.65664503]
[1768491230842,9.54727818,142.62,142.56,9.65664503]
[1768491231026,12.18941445,142.62,142.57,2.61626765]
[1768491232245,29.71851275,142.62,142.58,2.61626765]
[1768491233742,27.07637648,142.62,142.58,2.61626765]
[1768491233950,29.71851275,142.62,142.58,2.61626765]
[1768491234548,12.18941445,142.62,142.58,2.61626765]
[1768491236249,9.52805884,142.63,142.59,2.61626765]
[1768491236746,12.17019511,142.63,142.59,2.61626765]
[1768491237133,2.51645767,142.62,142.59,2.61626765]
[1768491237334,2.51645767,142.61,142.57,9.63020632]
[1768491237738,2.51645767,142.61,142.58,2.61626765]
[1768491239037,2.45645767,142.61,142.58,2.61626765]
[1768491240352,7.01198467,142.62,142.58,9.62953703]
[1768491240554,87.39571387,142.65,142.58,9.62953703]
[1768491240555,2.64213627,142.63,142.58,9.62953703]
[1768491240932,7.01065619,142.64,142.59,2.61626765]
[1768491241255,12.16925013,142.64,142.59,2.61626765]
[1768491241455,2.51645767,142.63,142.59,2.61626765]
[1768491242635,2.51645767,142.65,142.6,2.61626765]
[1768491242838,5.15859394,142.64,142.6,2.61626765]
[1768491243256,2.51645767,142.64,142.6,2.61626765]
[1768491244135,2.51645767,142.64,142.6,9.62867778]
[1768491244556,12.16954234,142.64,142.6,9.62867778]
[1768491244744,2.51645767,142.62,142.58,2.61626765]
[1768491244938,2.51645767,142.61,142.57,12.78]
[1768491245142,2.51645767,142.61,142.57,2.61626765]
[1768491245855,2.51645767,142.57,142.53,2.81626765]
[1768491246042,2.51645767,142.56,142.53,0.2]
[1768491246243,2.51645767,142.55,142.53,0.2]
[1768491246449,2.51645767,142.55,142.5,22.4136984]
[1768491246741,2.51645767,142.54,142.5,2.61626765]
[1768491246947,5.15859394,142.53,142.49,2.61626765]
[1768491247260,5.15859394,142.53,142.48,19.79806935]
[1768491247261,2.51645767,142.52,142.48,22.41452618]
[1768491247442,2.51645767,142.52,142.48,9.63452618]
[1768491248346,9.53263569,142.53,142.49,2.61626765]
[1768491249338,9.53263569,142.53,142.49,9.63420117]
[1768491249541,9.53263569,142.53,142.49,7.01793352]
[1768491249761,9.53263569,142.53,142.49,2.61626765]
[1768491249951,9.53263569,142.53,142.49,9.63420828]
[1768491250451,12.17477196,142.53,142.49,9.63420828]
[1768491250650,9.53263569,142.53,142.49,9.63420828]
[1768491251566,9.53263569,142.53,142.42,0.2]
[1768491251567,2.51645767,142.49,142.42,0.2]
[1768491251749,2.64213627,142.47,142.43,9.63694731]
[1768491251951,2.51645767,142.48,142.44,2.61626765]
[1768491252146,2.51645767,142.5,142.45,2.61626765]
[1768491252340,5.15859394,142.5,142.45,2.61626765]
[1768491253062,2.51645767,142.5,142.45,9.63602994]
[1768491253254,2.51645767,142.5,142.46,2.61626765]
[1768491253564,5.15859394,142.49,142.45,7.01976229]
[1768491253865,5.15859394,142.49,142.45,9.63602994]
[1768491254250,2.64213627,142.49,142.46,2.61626765]
[1768491254449,5.15859394,142.5,142.46,2.61626765]
[1768491254645,12.1761609,142.5,142.45,7.01976229]
[1768491254846,5.15859394,142.49,142.44,2.61626765]
[1768491255046,2.51645767,142.47,142.42,2.81626765]
[1768491255371,5.15859394,142.47,142.43,2.61626765]
[1768491256770,12.17679899,142.49,142.44,2.61626765]
[1768491256966,2.51645767,142.48,142.44,2.61626765]
[1768491257275,2.51645767,142.48,142.44,5.25840392]
[1768491257853,2.51645767,142.5,142.46,2.61626765]
[1768491258553,2.51645767,142.5,142.45,5.25840392]
[1768491258783,17.54188231,142.52,142.45,5.25840392]
[1768491258784,9.53319097,142.52,142.47,2.61626765]
[1768491258949,2.51645767,142.52,142.48,5.25840392]
[1768491259260,2.51645767,142.54,142.49,2.64213627]
[1768491259451,5.15859394,142.54,142.49,2.61626765]
[1768491259651,2.51645767,142.52,142.47,5.25840392]
[1768491259852,5.15859394,142.51,142.47,2.61626765]
[1768491260054,2.51645767,142.5,142.46,9.66165051]
[1768491260368,2.45645765,142.5,142.46,12.27791816]
[1768491260953,7.01758987,142.5,142.46,7.01951424]
[1768491261371,9.65933704,142.51,142.46,7.01951424]
[1768491261678,2.64213627,142.5,142.46,7.01951424]
[1768491262177,2.48803407,142.49,142.46,7.01951424]
[1768491263277,9.50523484,142.51,142.46,12.2785988]
[1768491263475,9.50523484,142.51,142.47,5.25908456]
[1768491263781,2.48803407,142.53,142.49,2.64213627]
[1768491264276,2.48803407,142.53,142.49,5.25908456]
[1768491264476,7.01604863,142.54,142.5,5.24281294]
[1768491264654,66.5662156,142.55,142.51,2.64213627]
[1768491265082,2.48142907,142.54,142.51,2.64213627]
[1768491265273,2.48142907,142.54,142.5,9.61783603]
[1768491265484,2.48142907,142.54,142.5,9.65929563]
[1768491265982,2.48142907,142.54,142.49,9.6183082]
[1768491266165,2.48142907,142.54,142.49,12.26044447]
[1768491266555,2.48142907,142.54,142.5,2.64213627]
[1768491266975,2.48142907,142.52,142.47,5.24281294]
[1768491267182,2.48142907,142.52,142.49,2.64213627]
[1768491267379,2.42142906,142.52,142.49,2.64213627]
[1768491267583,2.42142906,142.52,142.49,9.65975598]
[1768491267791,64.08489633,142.55,142.5,9.65965494]
[1768491267957,66.7270326,142.55,142.5,9.65965494]
[1768491269565,66.7270326,142.55,142.51,2.64213627]
[1768491269566,2.48142907,142.54,142.51,2.64213627]
[1768491269985,2.48142907,142.54,142.5,9.61819534]
[1768491270286,2.48142907,142.54,142.51,2.64213627]
[1768491270683,59.55113145,142.55,142.52,2.64213627]
[1768491270872,57.06970238,142.55,142.52,5.24281294]
[1768491271067,9.49566567,142.57,142.54,2.64213627]
[1768491271275,2.48142907,142.56,142.53,2.64213627]
[1768491273192,2.48142907,142.56,142.54,2.64213627]
[1768491273481,2.48142907,142.56,142.52,2.60067667]
[1768491273694,6.61345512,142.55,142.5,7.01749966]
[1768491273870,2.48142907,142.54,142.5,7.01749966]
[1768491274188,2.48142907,142.54,142.51,11.14893798]
[1768491274390,2.48142907,142.54,142.52,4.13202605]
[1768491275290,2.48142907,142.54,142.51,7.01691193]
[1768491275498,2.48142907,142.54,142.48,2.60067667]
[1768491275662,2.48142907,142.54,142.5,4.13202605]
[1768491275867,2.48142907,142.53,142.5,4.13202605]
[1768491276267,2.48142907,142.53,142.49,11.14996358]
[1768491276871,2.48142907,142.53,142.49,7.01793753]
[1768491277070,2.48142907,142.53,142.5,4.13202605]
[1768491277977,2.48142907,142.53,142.49,11.14996358]
[1768491278489,2.48142907,142.53,142.5,4.13202605]
[1768491279000,7.0158002,142.54,142.5,6.73270272]
[1768491279301,2.48142907,142.55,142.52,4.13202605]
[1768491279779,9.49560584,142.57,142.53,4.13202605]
[1768491280177,9.49560584,142.57,142.54,4.13202605]
[1768491280689,2.48142907,142.56,142.52,9.61703685]
[1768491280890,2.48142907,142.56,142.53,4.13202605]
[1768491281089,2.48142907,142.56,142.54,4.13202605]
[1768491281301,2.48142907,142.56,142.53,11.14773976]
[1768491281472,2.48142907,142.56,142.53,7.01571371]
[1768491281772,2.48142907,142.56,142.53,11.14773976]
[1768491282970,2.48142907,142.56,142.53,4.13202605]
[1768491283205,9.49612302,142.56,142.53,4.13202605]
[1768491283494,2.48142907,142.55,142.51,4.13202605]
[1768491283794,2.48142907,142.54,142.5,4.13202605]
[1768491284172,2.48142907,142.54,142.5,11.1495566]
[1768491284373,2.48142907,142.54,142.51,4.13202605]
[1768491284582,2.48142907,142.55,142.51,6.73270272]
[1768491285506,2.48142907,142.55,142.5,7.01753055]
[1768491285507,2.48142907,142.55,142.52,4.13202605]
[1768491285800,31.16462493,142.56,142.51,6.73270272]
[1768491286184,27.03259888,142.56,142.52,4.13202605]
[1768491286591,9.49612302,142.56,142.53,4.13202605]
[1768491287898,2.48142907,142.56,142.54,4.13202605]
[1768491288096,9.49555499,142.57,142.54,4.13202605]
[1768491288289,2.48142907,142.57,142.54,4.13202605]
[1768491288492,2.48142907,142.57,142.53,9.61643717]
[1768491288696,2.48142907,142.57,142.53,7.0157605]
[1768491288697,9.49556486,142.57,142.53,7.0157605]
[1768491288906,9.49556486,142.57,142.54,4.13202605]
[1768491290412,2.48142907,142.57,142.54,4.13202605]
[1768491290589,9.49555208,142.57,142.54,4.13202605]
[1768491291195,2.54654069,142.56,142.52,9.60589497]
[1768491291515,2.54654069,142.56,142.53,4.13202605]
[1768491292201,2.54654069,142.56,142.5,2.58967181]
[1768491292202,2.54654069,142.55,142.5,2.58967181]
[1768491292515,2.54654069,142.52,142.47,4.13202605]
[1768491292694,2.54654069,142.51,142.47,6.72169786]
[1768491293016,2.54654069,142.53,142.49,4.13202605]
[1768491293311,2.54654069,142.53,142.49,6.72169786]
[1768491293882,9.56282413,142.53,142.49,6.72169786]
[1768491294090,59.61624307,142.55,142.51,2.58967181]
[1768491294295,58.61624307,142.55,142.51,6.72169786]
[1768491295515,65.63155009,142.55,142.51,6.72169786]
[1768491296121,63.0850094,142.55,142.52,6.72169786]
[1768491296286,7.01471968,142.56,142.53,4.13202605]
[1768491296912,9.56126037,142.56,142.53,4.13202605]
[1768491299721,2.54654069,142.59,142.55,6.72169786]
[1768491300291,2.54654069,142.59,142.56,4.13202605]
[1768491300696,9.55994389,142.59,142.56,4.13202605]
[1768491300895,2.54654069,142.58,142.55,4.13202605]
[1768491301129,7.0134032,142.59,142.48,12.8]
[1768491301130,2.54654069,142.55,142.48,12.8]
[1768491301338,2.54654069,142.52,142.46,2.58967181]
[1768491301521,2.54654069,142.46,142.42,0.2]
[1768491301697,2.54654069,142.48,142.44,4.13202605]
[1768491301901,2.54654069,142.52,142.46,4.13202605]
[1768491302125,2.54654069,142.5,142.46,4.13202605]
[1768491302425,2.54654069,142.54,142.47,4.13202605]
[1768491302614,99.80221785,143.75,142.47,4.13202605]
[1768491302615,2.54654069,142.53,142.49,4.13202605]
[1768491302817,2.54654069,142.53,142.5,11.14940254]
[1768491303815,9.56263197,142.53,142.49,7.01784799]
[1768491304030,2.54654069,142.52,142.49,7.01784799]
[1768491304328,2.54654069,142.52,142.49,11.14987404]
[1768491305139,2.54654069,142.52,142.45,4.13202605]
[1768491305140,2.54654069,142.49,142.44,2.58967181]
[1768491305416,2.54654069,142.48,142.44,4.13202605]
[1768491306425,2.54654069,142.48,142.44,11.15236666]
[1768491307000,2.54654069,142.48,142.45,4.13202605]
[1768491307419,2.54654069,142.5,142.47,10.97476017]
[1768491307611,22.88265219,142.55,142.47,10.97476017]
[1768491307612,9.5634171,142.52,142.47,10.97476017]
[1768491307803,2.54654069,142.51,142.47,10.97476017]
[1768491308006,2.54654069,142.51,142.46,2.58967181]
[1768491308207,2.54654069,142.51,142.47,10.97476017]
[1768491308929,2.54654069,142.51,142.47,17.99370364]
[1768491309425,2.54654069,142.53,142.49,10.97476017]
[1768491309629,58.61624307,142.54,142.5,10.97476017]
[1768491310036,2.54654069,142.56,142.49,2.58967181]
[1768491310214,56.06970238,142.61,142.47,24.56649734]
[1768491310215,2.54654069,142.59,142.55,10.97476017]
[1768491310419,2.54654069,142.61,142.57,10.97476017]
[1768491310622,9.55879878,142.61,142.57,10.97476017]
[1768491311330,2.54654069,142.61,142.58,10.97476017]
[1768491311719,2.54654069,142.6,142.56,7.01440876]
[1768491312022,2.54654069,142.6,142.57,7.01385159]
[1768491312227,2.54654069,142.6,142.57,17.98861176]
[1768491312730,2.54654069,142.6,142.56,17.98916683]
[1768491312936,2.54654069,142.6,142.57,10.97476017]
[1768491314233,2.54654069,142.6,142.56,7.01440666]
[1768491314735,2.54654069,142.6,142.57,10.97476017]
[1768491314937,2.54654069,142.6,142.57,17.98855176]
[1768491315550,9.55824807,142.62,142.58,10.97476017]
[1768491316147,18.14408856,142.65,142.57,9.6034634]
[1768491316148,2.54654069,142.61,142.57,13.56443198]
[1768491316453,9.55768841,142.63,142.58,10.97476017]
[1768491316660,2.54654069,142.62,142.58,10.97476017]
[1768491318452,9.55832919,142.62,142.58,10.97476017]
[1768491318812,2.54654069,142.61,142.58,10.97476017]
[1768491319524,2.54654069,142.61,142.58,17.98814234]
[1768491319839,2.54654069,142.61,142.58,10.97476017]
[1768491320742,9.55879262,142.61,142.57,13.56443198]
[1768491321341,9.55879262,142.61,142.57,10.97476017]
[1768491322145,2.54654069,142.61,142.58,10.97476017]
[1768491322443,2.50941309,142.62,142.59,10.97476017]
[1768491323245,9.52069797,142.63,142.59,13.42315586]
[1768491323452,9.52069797,142.63,142.59,10.97476017]
[1768491323822,9.52069797,142.63,142.6,10.97476017]
[1768491324143,7.010817,142.64,142.61,10.97476017]
[1768491324516,2.39686229,142.63,142.59,9.45123552]
[1768491324716,2.39686229,142.63,142.6,10.97476017]
[1768491325032,7.010817,142.64,142.61,10.97476017]
[1768491325425,2.39686229,142.67,142.63,10.97476017]
[1768491325835,9.40604431,142.67,142.63,10.97476017]
[1768491326148,7.00918202,142.67,142.63,10.97476017]
[1768491326316,9.40604431,142.67,142.64,10.97476017]